Workbook

Sheet PLEASE READ
A1: The content in this spreadsheet is for informational purposes only. You should not construe any such information or other material as legal, tax, investment, financial, or other advice. You alone assume the sole responsibility of evaluating the merits and risks associated with the use of any information or other Content on the Site before making any decisions based on such information or other Content. You agree not to hold CFA Institute or its subsidiaries liable for any possible claim arising from any decision you make based on information or content made available to you through this spreadsheet.

Sheet 32.A.18 End of Day
A1: Modified Dietz - End of Day (EOD) Cash Flow (CF) Assumption
D3: Weight (EOD) | F3: Day Wtd CF
A4: 2019-05-31 | B4: BMV | C4: 100000
A5: 2019-06-06 | B5: CF | C5: -2000 | D5: =(A7-A5)/(A7-A4) -> 0.8 | E5: =(A7-A5)/(A7-A4) | F5: =C5*D5 -> -1600 | G5: =C5*D5
A6: 2019-06-11 | B6: CF | C6: 20000 | D6: =(A7-A6)/(A7-A4) -> 0.6333333333 | E6: =(A7-A6)/(A7-A4) | F6: =C6*D6 -> 12666.66667 | G6: =C6*D6
A7: 2019-06-30 | B7: EMV | C7: 135000
A9: Total Cash Flows | C9: =C5+C6 -> 18000 | D9: =C5+C6
A10: Weighted Cash Flows | C10: =F5+F6 -> 11066.66667 | D10: =F5+F6
A12: Numerator | C12: =C7-C4-C5-C6 -> 17000 | D12: =C7-C4-C5-C6
A13: Denominator | C13: =C4+F5+F6 -> 111066.6667 | D13: =C4+F5+F6
A14: Return | C14: =C12/C13 -> 0.1530612245 | D14: =C12/C13

Sheet 32.A.18 Beg of Day
A1: Modified Dietz - Beginning of Day (BOD) Cash Flow (CF) Assumption
D3: Weight (BOD) | F3: Day Wtd CF
A4: 2019-05-31 | B4: BMV | C4: 100000
A5: 2019-06-06 | B5: CF | C5: -2000 | D5: =(A7-A5+1)/(A7-A4) -> 0.8333333333 | E5: =(A7-A5+1)/(A7-A4) | F5: =C5*D5 -> -1666.666667 | G5: =C5*D5
A6: 2019-06-11 | B6: CF | C6: 20000 | D6: =(A7-A6+1)/(A7-A4) -> 0.6666666667 | E6: =(A7-A6+1)/(A7-A4) | F6: =C6*D6 -> 13333.33333 | G6: =C6*D6
A7: 2019-06-30 | B7: EMV | C7: 135000
A9: Total Cash Flows | C9: =C5+C6 -> 18000 | D9: =C5+C6
A10: Weighted Cash Flows | C10: =F5+F6 -> 11666.66667 | D10: =F5+F6
A12: Numerator | C12: =C7-C4-C5-C6 -> 17000 | D12: =C7-C4-C5-C6
A13: Denominator | C13: =C4+F5+F6 -> 111666.6667 | D13: =C4+F5+F6
A14: Return | C14: =C12/C13 -> 0.152238806 | D14: =C12/C13

Sheet 32.A.18 End of Day LCF
A1: Modified Dietz - End of Day (EOD) Cash Flow Assumption with Large Cash Flow (CF)
D3: Weight (EOD) | F3: Day Wtd CF
A4: 2019-05-31 | B4: BMV | C4: 100000
A5: 2019-06-06 | B5: CF | C5: -2000 | D5: =(A7-A5)/(A7-A4) -> 0.4545454545 | E5: =(A7-A5)/(A7-A4) | F5: =C5*D5 -> -909.0909091 | G5: =C5*D5
A6: 2019-06-11 | B6: CF | C6: 20000 | D6: =(A7-A6)/(A7-A4) -> 0 | E6: =(A7-A6)/(A7-A4) | F6: =C6*D6 -> 0 | G6: =C6*D6
A7: 2019-06-11 | B7: MV | C7: 125000
A8: 2019-06-30 | B8: EMV | C8: 135000
A10: Sub-period 1 Calculation
A11: Numerator | C11: =C7-C4-C5-C6 -> 7000 | D11: =C7-C4-C5-C6
A12: Denominator | C12: =C4+F5+F6 -> 99090.90909 | D12: =C4+F5+F6
A13: Return | C13: =C11/C12 -> 0.07064220183 | D13: =C11/C12
A15: Sub-period 2 Calculation
A16: Numerator | C16: =C8-C7 -> 10000 | D16: =C8-C7
A17: Denominator | C17: =C7 -> 125000 | D17: =C7
A18: Return | C18: =C16/C17 -> 0.08 | D18: =C16/C17
A20: Total sub-periods 1 & 2 | C20: =(1+C13)*(1+C18)-1 -> 0.156293578 | D20: =(1+C13)*(1+C18)-1

Sheet 32.A.22 Comp Relative Rtn Calcs
A1: Composite Relative Returns - Equal Weighted
B2: Scheme | D2: Equal Weighted | E2: Equal Weighted
B3: Relative | D3: Composite Relative | E3: Composite Relative
A4: Scheme | B4: Return | C4: Equal Weights | D4: Return | E4: Return Formula
A5: A | B5: 0.028 | C5: =1/3 -> 0.3333333333 | D5: =B5*C5 -> 0.009333333333 | E5: =B5*C5
A6: B | B6: 0.0189 | C6: =1/3 -> 0.3333333333 | D6: =B6*C6 -> 0.0063 | E6: =B6*C6
A7: C | B7: 0.0201 | C7: 0.3333333333 | D7: 0.0067 | E7: =B7*C7
A8: Total | C8: =SUM(C5:C7) -> 1 | D8: =SUM(D5:D7) -> 0.02233333333 | E8: =SUM(D5:D7)

Sheet 32.A.32 Information Ratio
A1: Date | B1: Composite Relative Returns
A2: 2019-12-31 | B2: 0.0023
A3: 2019-11-30 | B3: -0.002
A4: 2019-10-31 | B4: -0.0018
A5: 2019-09-30 | B5: 0.0007
A6: 2019-08-31 | B6: -0.0043
A7: 2019-07-31 | B7: 0.0023
A8: 2019-06-30 | B8: -0.0012
A9: 2019-05-31 | B9: -0.0057
A10: 2019-04-30 | B10: 0.0012
A11: 2019-03-31 | B11: -0.0038
A12: 2019-02-28 | B12: -0.0071
A13: 2019-01-31 | B13: 0.0051
A14: 2018-12-31 | B14: 0.0008
A15: 2018-11-30 | B15: 0.001
A16: 2018-10-31 | B16: -0.0002
A17: 2018-09-30 | B17: -0.0005
A18: 2018-08-31 | B18: 0.0022
A19: 2018-07-31 | B19: 0.0015
A20: 2018-06-30 | B20: 0.0001
A21: 2018-05-31 | B21: 0.0038
A22: 2018-04-30 | B22: 0.0032
A23: 2018-03-31 | B23: 0.0018
A24: 2018-02-28 | B24: -0.0013
A25: 2018-01-31 | B25: 0.0011
A26: 2017-12-31 | B26: 0.0021
A27: 2017-11-30 | B27: 0.0013
A28: 2017-10-31 | B28: 0.0024
A29: 2017-09-30 | B29: 0.0022
A30: 2017-08-31 | B30: 0.0016
A31: 2017-07-31 | B31: 0.0008
A32: 2017-06-30 | B32: 0.0007
A33: 2017-05-31 | B33: 0.0026
A34: 2017-04-30 | B34: 0.0013
A35: 2017-03-31 | B35: 0.0017
A36: 2017-02-28 | B36: 0.0015
A37: 2017-01-31 | B37: 0.0023
B39: Information Ratio
A40: Numerator | B40: =(SUM(B2:B37)/36)*12 -> 0.006566666667 | C40: <-Using 36 monthly observations
A41: Denominator | B41: =STDEVP(B2:B37)*SQRT(12) -> 0.008781983873
A42: 3-Year Annualized Information Ratio | B42: =B40/B41 -> 0.7477429658
